fUSD/lending_fUSD_20250807
["ID","MTS","AMOUNT","RATE_DAILY","PERIOD"]
[377892101,1754602242106,-333.85264512,0.00019178,2]
[377892102,1754602242115,-2554.17,0.00019178,2]
[377892103,1754602242124,-400.0,0.00019178,2]
[377892104,1754602242133,-1500.84,0.00019178,2]
[377892105,1754602242143,-825.89,0.00019178,2]
[377892106,1754602242152,-400.0,0.00019178,2]
[377892107,1754602242161,-2116.5,0.00019178,2]
[377892108,1754602242170,-400.0,0.00019178,2]
[377892109,1754602242179,-400.0,0.00019178,2]
[377892110,1754602242188,-400.0,0.00019178,2]
[377892111,1754602242197,-400.0,0.00019178,2]
[377892112,1754602242207,-400.0,0.00019178,2]
[377892113,1754602242216,-833.09,0.00019178,2]
[377892114,1754602242225,-853.57,0.00019178,2]
[377892115,1754602242234,-1617.31,0.00019178,2]
[377892116,1754602242243,-500.0,0.00019178,2]
[377892118,1754602242252,-500.0,0.00019178,2]
[377892119,1754602242262,-530.23149799,0.00019178,2]
[377892120,1754602242271,-400.0,0.00019178,2]
[377892122,1754602242280,-500.0,0.00019178,2]
[377892123,1754602242293,-500.0,0.00019178,2]
[377892125,1754602242302,-1095.03,0.00019178,2]
[377892127,1754602242312,-285.1,0.00019178,2]
[377892129,1754602242321,-400.0,0.00019178,2]
[377892131,1754602242330,-2010.71,0.00019178,2]
[377892133,1754602242341,-400.0,0.00019178,2]
[377892135,1754602242351,-2097.98,0.00019178,2]
[377892137,1754602242360,-400.0,0.00019178,2]
[377892138,1754602242369,-1429.8,0.00019178,2]
[377892139,1754602242379,-400.0,0.00019178,2]
[377892140,1754602242388,-400.0,0.00019178,2]
[377892141,1754602242398,-1035.21,0.00019178,2]
[377892142,1754602242407,-4044.78,0.00019178,2]
[377892143,1754602242416,-400.0,0.00019178,2]
[377892144,1754602242426,-400.0,0.00019178,2]
[377892145,1754602242435,-151.0,0.00019178,2]
[377892146,1754602242444,-400.0,0.00019178,2]
[377892147,1754602242453,-400.0,0.00019178,2]
[377892148,1754602242462,-684.5,0.00019178,2]
[377892149,1754602242472,-400.0,0.00019178,2]
[377892150,1754602242482,-1808.36,0.00019178,2]
[377892151,1754602242491,-400.0,0.00019178,2]
[377892152,1754602242501,-151.0,0.00019178,2]
[377892153,1754602242510,-151.0,0.00019178,2]
[377892154,1754602242521,-871.08,0.00019178,2]
[377892155,1754602242531,-1887.32,0.00019178,2]
[377892156,1754602242540,-1139.48,0.00019178,2]
[377892157,1754602242550,-403.05756384,0.00019178,2]
[377892158,1754602242559,-1559.36,0.00019178,2]
[377892159,1754602242569,-1098.51,0.00019178,2]
[377892160,1754602242579,-400.0,0.00019178,2]
[377892161,1754602242588,-1589.88,0.00019178,2]
[377892162,1754602242598,-1443.1,0.00019178,2]
[377892163,1754602242607,-582.96,0.00019178,2]
[377892164,1754602242617,-1676.87,0.00019178,2]
[377892165,1754602242626,-705.62,0.00019178,2]
[377892166,1754602242635,-400.0,0.00019178,2]
[377892167,1754602242645,-1170.37,0.00019178,2]
[377892168,1754602242654,-649.31,0.00019178,2]
[377892169,1754602242663,-781.17,0.00019178,2]
[377892170,1754602242672,-893.64,0.00019178,2]
[377892171,1754602242681,-1300.15,0.00019178,2]
[377892172,1754602242691,-2243.14,0.00019178,2]
[377892173,1754602242700,-400.0,0.00019178,2]
[377892174,1754602242709,-1810.11,0.00019178,2]
[377892175,1754602242719,-400.0,0.00019178,2]
[377892176,1754602242728,-961.12,0.00019178,2]
[377892177,1754602242737,-400.0,0.00019178,2]
[377892178,1754602242746,-573.99,0.00019178,2]
[377892179,1754602242755,-757.5,0.00019178,2]
[377892180,1754602242765,-400.0,0.00019178,2]
[377892181,1754602242775,-634.68,0.00019178,2]
[377892182,1754602242785,-1982.19,0.00019178,2]
[377892184,1754602242795,-400.0,0.00019178,2]
[377892185,1754602242803,-482.11,0.00019178,2]
[377892186,1754602242812,-995.38,0.00019178,2]
[377892187,1754602242822,-400.0,0.00019178,2]
[377892188,1754602242831,-1632.12,0.00019178,2]
[377892189,1754602242840,-193.9137504,0.00019178,2]
[377892190,1754602242850,-351.05187707,0.00019178,2]
[377892191,1754602242860,-789.6,0.00019178,2]
[377892193,1754602242870,-400.0,0.00019178,2]
[377892195,1754602242879,-577.9,0.00019178,2]
[377892197,1754602242889,-400.0,0.00019178,2]
[377892198,1754602242898,-331.88288718,0.00019178,2]
[377892199,1754602242907,-890.23,0.00019178,2]
[377892201,1754602242916,-411.86,0.00019178,2]
[377892203,1754602242927,-1301.07,0.00019178,2]
[377892205,1754602242936,-400.0,0.00019178,2]
[377892207,1754602242946,-447.72,0.00019178,2]
[377892208,1754602242955,-400.0,0.00019178,2]
[377892209,1754602242964,-1058.8,0.00019178,2]
[377892210,1754602242973,-527.95,0.00019178,2]
[377892211,1754602242983,-2494.69,0.00019178,2]
[377892212,1754602242991,-1532.38,0.00019178,2]
[377892213,1754602243000,-2649.17,0.00019178,2]
[377892214,1754602243009,-634.78,0.00019178,2]
[377892215,1754602243019,-2432.17,0.00019178,2]
[377892216,1754602243029,-400.0,0.00019178,2]
[377892217,1754602243038,-1811.78,0.00019178,2]
[377892218,1754602243047,-935.32,0.00019178,2]
[377892219,1754602243057,-996.18,0.00019178,2]
[377892220,1754602243067,-819.45,0.00019178,2]
[377892221,1754602243076,-151.0,0.00019178,2]
[377892222,1754602243084,-400.0,0.00019178,2]
[377892223,1754602243094,-400.0,0.00019178,2]
[377892224,1754602243103,-151.0,0.00019178,2]
[377892225,1754602243112,-151.0,0.00019178,2]
[377892226,1754602243122,-151.0,0.00019178,2]
[377892227,1754602243131,-400.0,0.00019178,2]
[377892228,1754602243140,-2112.98,0.00019178,2]
[377892229,1754602243149,-1763.44,0.00019178,2]
[377892230,1754602243159,-891.5,0.00019178,2]
[377892231,1754602243168,-723.32,0.00019178,2]
[377892232,1754602243177,-400.0,0.00019178,2]
[377892233,1754602243186,-400.0,0.00019178,2]
[377892234,1754602243196,-400.0,0.00019178,2]
[377892235,1754602243205,-400.0,0.00019178,2]
[377892236,1754602243214,-400.0,0.00019178,2]
[377892237,1754602243225,-786.45,0.00019178,2]
[377892238,1754602243234,-1436.21,0.00019178,2]
[377892239,1754602243244,-1049.31,0.00019178,2]
[377892240,1754602243253,-400.0,0.00019178,2]
[377892241,1754602243262,-400.0,0.00019178,2]
[377892242,1754602243272,-333.79286286,0.00019178,2]
[377892243,1754602243281,-400.0,0.00019178,2]
[377892244,1754602243292,-400.0,0.00019178,2]
[377892245,1754602243304,-400.0,0.00019178,2]
[377892246,1754602243313,-494.55,0.00019178,2]
[377892247,1754602243322,-400.0,0.00019178,2]
[377892248,1754602243331,-3470.68,0.00019178,2]
[377892249,1754602243342,-1576.58,0.00019178,2]
[377892250,1754602243352,-152.213749,0.00019178,2]
[377892251,1754602243361,-400.0,0.00019178,2]
[377892252,1754602243370,-400.0,0.00019178,2]
[377892253,1754602243381,-400.0,0.00019178,2]
[377892254,1754602243391,-400.0,0.00019178,2]
[377892255,1754602243400,-400.0,0.00019178,2]
[377892256,1754602243410,-903.26,0.00019178,2]
[377892257,1754602243419,-2363.54,0.00019178,2]
[377892258,1754602243429,-400.0,0.00019178,2]
[377892259,1754602243438,-1373.73,0.00019178,2]
[377892260,1754602243448,-790.92,0.00019178,2]
[377892261,1754602243457,-400.0,0.00019178,2]
[377892262,1754602243468,-400.0,0.00019178,2]
[377892263,1754602243478,-587.74,0.00019178,2]
[377892264,1754602243487,-400.0,0.00019178,2]
[377892265,1754602243497,-859.94,0.00019178,2]
[377892266,1754602243506,-1359.17,0.00019178,2]
[377892267,1754602243516,-400.0,0.00019178,2]
[377892268,1754602243526,-1063.43,0.00019178,2]
[377892269,1754602243535,-414.97,0.00019178,2]
[377892270,1754602243545,-1602.79,0.00019178,2]
[377892271,1754602243554,-1044.15,0.00019178,2]
[377892272,1754602243563,-400.0,0.00019178,2]
[377892273,1754602243573,-400.0,0.00019178,2]
[377892274,1754602243582,-823.48,0.00019178,2]
[377892275,1754602243591,-400.0,0.00019178,2]
[377892276,1754602243601,-1452.12,0.00019178,2]
[377892277,1754602243610,-400.0,0.00019178,2]
[377892278,1754602243619,-424.65,0.00019178,2]
[377892279,1754602243629,-1156.83,0.00019178,2]
[377892280,1754602243639,-2332.7,0.00019178,2]
[377892281,1754602243648,-400.0,0.00019178,2]
[377892282,1754602243657,-3193.29,0.00019178,2]
[377892283,1754602243667,-400.0,0.00019178,2]
[377892284,1754602243676,-400.0,0.00019178,2]
[377892285,1754602243686,-400.0,0.00019178,2]
[377892286,1754602243695,-424.62,0.00019178,2]
[377892287,1754602243704,-400.0,0.00019178,2]
[377892288,1754602243713,-751.94,0.00019178,2]
[377892289,1754602243723,-2339.11,0.00019178,2]
[377892290,1754602243735,-400.0,0.00019178,2]
[377892291,1754602243745,-1626.24,0.00019178,2]
[377892292,1754602243755,-1208.49,0.00019178,2]
[377892293,1754602243765,-154.459217,0.00019178,2]
[377892294,1754602243775,-2380.57,0.00019178,2]
[377892295,1754602243784,-2990.41,0.00019178,2]
[377892296,1754602243794,-400.0,0.00019178,2]
[377892297,1754602243804,-2062.99,0.00019178,2]
[377892298,1754602243813,-400.0,0.00019178,2]
[377892299,1754602243822,-557.19,0.00019178,2]
[377892300,1754602243831,-151.0,0.00019178,2]
[377892301,1754602243841,-400.0,0.00019178,2]
[377892302,1754602243850,-1643.57,0.00019178,2]
[377892303,1754602243860,-400.0,0.00019178,2]
[377892304,1754602243869,-3493.12,0.00019178,2]
[377892305,1754602243878,-400.0,0.00019178,2]
[377892306,1754602243887,-1383.13,0.00019178,2]
[377892307,1754602243896,-400.0,0.00019178,2]
[377892308,1754602243905,-400.0,0.00019178,2]
[377892309,1754602243915,-590.05,0.00019178,2]
[377892310,1754602243924,-1782.93,0.00019178,2]
[377892311,1754602243933,-400.0,0.00019178,2]
[377892312,1754602243942,-400.0,0.00019178,2]
[377892313,1754602243951,-722.84,0.00019178,2]
[377892314,1754602243960,-400.0,0.00019178,2]
[377892315,1754602243970,-400.0,0.00019178,2]
[377892316,1754602243979,-400.0,0.00019178,2]
[377892317,1754602243989,-949.68,0.00019178,2]
[377892318,1754602243998,-400.0,0.00019178,2]
[377892319,1754602244007,-1968.99,0.00019178,2]
[377892320,1754602244016,-400.0,0.00019178,2]
[377892321,1754602244025,-1000.0,0.00019178,2]
[377892322,1754602244034,-440.0,0.00019178,2]
[377892323,1754602244044,-400.0,0.00019178,2]
[377892324,1754602244054,-762.33,0.00019178,2]
[377892325,1754602244063,-1286.22,0.00019178,2]
[377892326,1754602244072,-1892.56,0.00019178,2]
[377892327,1754602244081,-400.0,0.00019178,2]
[377892328,1754602244090,-400.0,0.00019178,2]
[377892329,1754602244100,-1760.63,0.00019178,2]
[377892330,1754602244109,-665.51,0.00019178,2]
[377892331,1754602244118,-1663.02,0.00019178,2]
[377892332,1754602244127,-402.96,0.00019178,2]
[377892333,1754602244136,-332.44970054,0.00019178,2]
[377892334,1754602244145,-538.34,0.00019178,2]
[377892335,1754602244154,-1966.55,0.00019178,2]
[377892336,1754602244163,-2450.88,0.00019178,2]
[377892337,1754602244173,-174.30865371,0.00019178,2]
[377892338,1754602244182,-649.16,0.00019178,2]
[377892339,1754602244191,-400.0,0.00019178,2]
[377892340,1754602244200,-1313.26,0.00019178,2]
[377892341,1754602244210,-400.0,0.00019178,2]
[377892342,1754602244220,-400.0,0.00019178,2]
[377892343,1754602244229,-2308.5,0.00019178,2]
[377892344,1754602244239,-400.0,0.00019178,2]
[377892345,1754602244248,-400.0,0.00019178,2]
[377892346,1754602244257,-1374.66,0.00019178,2]
[377892347,1754602244267,-1779.56,0.00019178,2]
[377892348,1754602244276,-729.05,0.00019178,2]
[377892349,1754602244286,-459.55,0.00019178,2]
[377892350,1754602244296,-1421.08,0.00019178,2]
[377892351,1754602244306,-1350.84,0.00019178,2]
[377892352,1754602244315,-661.62,0.00019178,2]
[377892353,1754602244324,-674.55,0.00019178,2]
[377892354,1754602244334,-400.0,0.00019178,2]
[377892355,1754602244344,-1273.91,0.00019178,2]
[377892356,1754602244353,-2973.81,0.00019178,2]
[377892357,1754602244362,-432.79,0.00019178,2]
[377892358,1754602244372,-933.8,0.00019178,2]
[377892359,1754602244382,-1983.28,0.00019178,2]
[377892360,1754602244392,-1761.65,0.00019178,2]
[377892361,1754602244402,-1181.46,0.00019178,2]
[377892362,1754602244412,-400.0,0.00019178,2]
[377892363,1754602244421,-2065.46,0.00019178,2]
[377892364,1754602244430,-400.0,0.00019178,2]
[377892365,1754602244440,-1090.82,0.00019178,2]
[377892366,1754602244449,-2369.92,0.00019178,2]
[377892367,1754602244579,-400.0,0.00019178,2]
[377892368,1754602244590,-400.0,0.00019178,2]
[377892369,1754602244599,-1849.93,0.00019178,2]
[377892370,1754602244609,-1653.37,0.00019178,2]
[377892371,1754602244619,-400.0,0.00019178,2]
[377892372,1754602244629,-1785.25,0.00019178,2]
[377892373,1754602244639,-1210.09,0.00019178,2]
[377892374,1754602244649,-400.0,0.00019178,2]
[377892375,1754602244658,-2503.7,0.00019178,2]
[377892376,1754602244668,-1495.0,0.00019178,2]
[377892377,1754602244677,-626.3,0.00019178,2]
[377892378,1754602244686,-400.0,0.00019178,2]
[377892379,1754602244697,-2151.02,0.00019178,2]
[377892380,1754602244707,-692.86,0.00019178,2]
[377892381,1754602244716,-400.0,0.00019178,2]
[377892382,1754602244727,-400.0,0.00019178,2]
[377892383,1754602244738,-589.97,0.00019178,2]
[377892384,1754602244747,-400.0,0.00019178,2]
[377892385,1754602244757,-2032.94,0.00019178,2]
[377892386,1754602244767,-1773.19,0.00019178,2]
[377892387,1754602244776,-1045.62,0.00019178,2]
[377892388,1754602244786,-400.0,0.00019178,2]
[377892389,1754602244795,-1358.56,0.00019178,2]
[377892390,1754602244807,-2315.09,0.00019178,2]
[377892391,1754602244818,-1399.11,0.00019178,2]
[377892392,1754602244828,-400.0,0.00019178,2]
[377892393,1754602244837,-151.0,0.00019178,2]
[377892394,1754602244847,-581.52,0.00019178,2]
[377892395,1754602244856,-400.0,0.00019178,2]
[377892396,1754602244867,-1388.51,0.00019178,2]
[377892397,1754602244877,-400.0,0.00019178,2]
[377892398,1754602244887,-810.19,0.00019178,2]
[377892399,1754602244896,-400.0,0.00019178,2]
[377892400,1754602244906,-2275.44,0.00019178,2]
[377892401,1754602244917,-1375.09,0.00019178,2]
[377892402,1754602244927,-401.90276829,0.00019178,2]
[377892403,1754602244938,-1388.67,0.00019178,2]
[377892404,1754602244947,-2204.55,0.00019178,2]
[377892405,1754602244957,-1075.46,0.00019178,2]
[377892406,1754602244966,-1627.32,0.00019178,2]
[377892407,1754602244976,-1633.36,0.00019178,2]
[377892408,1754602244985,-400.0,0.00019178,2]
[377892409,1754602244994,-400.0,0.00019178,2]
[377892410,1754602245004,-1740.43,0.00019178,2]
[377892411,1754602245013,-400.0,0.00019178,2]
[377892412,1754602245024,-2936.56,0.00019178,2]
[377892413,1754602245033,-2169.9,0.00019178,2]
[377892414,1754602245043,-1815.09,0.00019178,2]
[377892415,1754602245053,-400.0,0.00019178,2]
[377892416,1754602245062,-528.75,0.00019178,2]
[377892417,1754602245071,-400.0,0.00019178,2]
[377892418,1754602245080,-400.0,0.00019178,2]
[377892419,1754602245090,-1236.51,0.00019178,2]
[377892420,1754602245099,-1993.52,0.00019178,2]
[377892421,1754602245109,-1406.0,0.00019178,2]
[377892422,1754602245118,-400.0,0.00019178,2]
[377892423,1754602245128,-400.0,0.00019178,2]
[377892424,1754602245138,-1416.28,0.00019178,2]
[377892425,1754602245147,-400.0,0.00019178,2]
[377892426,1754602245157,-400.0,0.00019178,2]
[377892427,1754602245166,-425.48,0.00019178,2]
[377892428,1754602245175,-473.19,0.00019178,2]
[377892429,1754602245186,-445.81,0.00019178,2]
[377892430,1754602245196,-2647.43,0.00019178,2]
[377892431,1754602245206,-400.0,0.00019178,2]
[377892432,1754602245216,-400.0,0.00019178,2]
[377892433,1754602245227,-788.31,0.00019178,2]
[377892434,1754602245236,-400.0,0.00019178,2]
[377892435,1754602245245,-3200.41,0.00019178,2]
[377892437,1754602245254,-2529.56,0.00019178,2]
[377892439,1754602245264,-693.65,0.00019178,2]
[377892440,1754602245275,-400.0,0.00019178,2]
[377892441,1754602245284,-400.0,0.00019178,2]
[377892442,1754602245294,-569.25,0.00019178,2]
[377892443,1754602245305,-400.0,0.00019178,2]
[377892444,1754602245315,-2697.95,0.00019178,2]
[377892445,1754602245324,-552.93,0.00019178,2]
[377892446,1754602245334,-735.97,0.00019178,2]
[377892447,1754602245344,-997.4,0.00019178,2]
[377892448,1754602245354,-400.0,0.00019178,2]
[377892449,1754602245364,-425.61,0.00019178,2]
[377892450,1754602245374,-2610.39,0.00019178,2]
[377892452,1754602245384,-1286.3,0.00019178,2]
[377892453,1754602245394,-400.0,0.00019178,2]
[377892454,1754602245404,-1435.6,0.00019178,2]
[377892455,1754602245413,-1434.3,0.00019178,2]
[377892456,1754602245423,-400.0,0.00019178,2]
[377892457,1754602245432,-2900.35,0.00019178,2]
[377892458,1754602245442,-400.0,0.00019178,2]
[377892459,1754602245451,-400.0,0.00019178,2]
[377892460,1754602245460,-400.0,0.00019178,2]
[377892461,1754602245470,-151.0,0.00019178,2]
[377892462,1754602245479,-1213.02,0.00019178,2]
[377892463,1754602245488,-1524.7,0.00019178,2]
[377892464,1754602245498,-400.0,0.00019178,2]
[377892465,1754602245508,-520.97,0.00019178,2]
[377892466,1754602245520,-1271.79,0.00019178,2]
[377892467,1754602245529,-400.0,0.00019178,2]
[377892468,1754602245539,-1531.73,0.00019178,2]
[377892469,1754602245548,-2925.39,0.00019178,2]
[377892470,1754602245558,-400.0,0.00019178,2]
[377892471,1754602245567,-400.0,0.00019178,2]
[377892472,1754602245577,-400.0,0.00019178,2]
[377892473,1754602245586,-1387.33,0.00019178,2]
[377892474,1754602245596,-400.0,0.00019178,2]
[377892475,1754602245605,-400.0,0.00019178,2]
[377892476,1754602245615,-400.0,0.00019178,2]
[377892477,1754602245624,-400.0,0.00019178,2]
[377892478,1754602245634,-400.0,0.00019178,2]
[377892479,1754602245644,-261.83108166,0.00019178,2]
[377892480,1754602245653,-2909.91,0.00019178,2]
[377892481,1754602245663,-500.0,0.00019178,2]
[377892482,1754602245672,-400.0,0.00019178,2]
[377892483,1754602245682,-1309.3,0.00019178,2]
[377892484,1754602245693,-500.0,0.00019178,2]
[377892485,1754602245703,-1330.35,0.00019178,2]
[377892486,1754602245714,-500.0,0.00019178,2]
[377892487,1754602245723,-2602.79,0.00019178,2]
[377892488,1754602245733,-500.0,0.00019178,2]
[377892489,1754602245743,-500.0,0.00019178,2]
[377892490,1754602245752,-151.0,0.00019178,2]
[377892491,1754602245762,-2288.29,0.00019178,2]
[377892492,1754602245773,-154.424994,0.00019178,2]
[377892493,1754602245782,-429.32,0.00019178,2]
[377892494,1754602245792,-1646.28,0.00019178,2]
[377892495,1754602245802,-1643.77,0.00019178,2]
[377892496,1754602245812,-441.13,0.00019178,2]
[377892497,1754602245821,-2675.94,0.00019178,2]
[377892498,1754602245831,-400.0,0.00019178,2]
[377892499,1754602245841,-1296.45,0.00019178,2]
[377892500,1754602245850,-1268.74,0.00019178,2]
[377892501,1754602245859,-400.0,0.00019178,2]
[377892502,1754602245870,-2665.59,0.00019178,2]
[377892503,1754602245880,-400.0,0.00019178,2]
[377892504,1754602245889,-400.0,0.00019178,2]
[377892505,1754602245899,-770.77,0.00019178,2]
[377892506,1754602245909,-400.0,0.00019178,2]
[377892507,1754602245919,-1383.37,0.00019178,2]
[377892508,1754602245931,-151.0,0.00019178,2]
[377892509,1754602245941,-151.0,0.00019178,2]
[377892510,1754602245951,-400.0,0.00019178,2]
[377892512,1754602245960,-151.0,0.00019178,2]
[377892514,1754602245970,-151.0,0.00019178,2]
[377892516,1754602245979,-299.98946,0.00019178,2]
[377892518,1754602245989,-2689.23,0.00019178,2]
[377892520,1754602245998,-2219.07,0.00019178,2]
[377892522,1754602246008,-1429.97,0.00019178,2]
[377892524,1754602246019,-3378.37,0.00019178,2]
[377892526,1754602246028,-710.08,0.00019178,2]
[377892528,1754602246038,-2052.69,0.00019178,2]
[377892530,1754602246047,-2423.13,0.00019178,2]
[377892532,1754602246056,-1643.39,0.00019178,2]
[377892534,1754602246068,-1443.12,0.00019178,2]
[377892536,1754602246077,-853.96,0.00019178,2]
[377892538,1754602246087,-559.62,0.00019178,2]
[377892541,1754602246096,-1623.2,0.00019178,2]
[377892543,1754602246106,-1874.18,0.00019178,2]
[377892545,1754602246118,-1008.64,0.00019178,2]
[377892548,1754602246127,-400.85296208,0.00019178,2]
[377892550,1754602246137,-2977.47,0.00019178,2]
[377892552,1754602246146,-401.84148581,0.00019178,2]
[377892554,1754602246155,-400.0,0.00019178,2]
[377892555,1754602246164,-400.0,0.00019178,2]
[377892556,1754602246173,-1336.45,0.00019178,2]
[377892557,1754602246182,-2330.69,0.00019178,2]
[377892558,1754602246191,-400.0,0.00019178,2]
[377892559,1754602246200,-1750.16,0.00019178,2]
[377892560,1754602246209,-500.0,0.00019178,2]
[377892561,1754602246218,-400.0,0.00019178,2]
[377892562,1754602246227,-2060.52,0.00019178,2]
[377892563,1754602246235,-1420.87,0.00019178,2]
[377892564,1754602246245,-400.0,0.00019178,2]
[377892565,1754602246254,-2333.45,0.00019178,2]
[377892566,1754602246264,-400.0,0.00019178,2]
[377892567,1754602246274,-889.0,0.00019178,2]
[377892568,1754602246283,-1385.54,0.00019178,2]
[377892569,1754602246293,-400.0,0.00019178,2]
[377892570,1754602246304,-2312.26,0.00019178,2]
[377892571,1754602246313,-2325.97,0.00019178,2]
[377892572,1754602246323,-1432.2,0.00019178,2]
[377892573,1754602246332,-2221.51,0.00019178,2]
[377892574,1754602246343,-400.0,0.00019178,2]
[377892575,1754602246353,-400.0,0.00019178,2]
[377892576,1754602246362,-400.0,0.00019178,2]
[377892577,1754602246372,-400.0,0.00019178,2]
[377892578,1754602246381,-876.94,0.00019178,2]
[377892579,1754602246390,-3190.81,0.00019178,2]
[377892580,1754602246400,-1412.54,0.00019178,2]
[377892581,1754602246409,-11338.02,0.00019178,2]
[377892582,1754602246419,-1606.04,0.00019178,2]
[377892583,1754602246428,-767.26,0.00019178,2]
[377892584,1754602246437,-400.0,0.00019178,2]
[377892585,1754602246447,-400.0,0.00019178,2]
[377892586,1754602246456,-1949.67,0.00019178,2]
[377892587,1754602246465,-1499.16,0.00019178,2]
[377892588,1754602246475,-1864.73,0.00019178,2]
[377892589,1754602246484,-400.0,0.00019178,2]
[377892590,1754602246493,-940.96,0.00019178,2]
[377892591,1754602246503,-2401.87,0.00019178,2]
[377892592,1754602246513,-400.0,0.00019178,2]
[377892593,1754602246524,-402.3,0.00019178,2]
[377892594,1754602246533,-400.0,0.00019178,2]
[377892595,1754602246543,-2548.3,0.00019178,2]
[377892596,1754602246552,-151.0,0.00019178,2]
[377892597,1754602246561,-151.0,0.00019178,2]
[377892598,1754602246571,-400.0,0.00019178,2]
[377892599,1754602246580,-400.0,0.00019178,2]
[377892600,1754602246589,-400.0,0.00019178,2]
[377892601,1754602246599,-1780.07,0.00019178,2]
[377892602,1754602246608,-151.0,0.00019178,2]
[377892603,1754602246617,-151.0,0.00019178,2]
[377892604,1754602246626,-400.0,0.00019178,2]
[377892605,1754602246635,-400.0,0.00019178,2]
[377892606,1754602246644,-400.0,0.00019178,2]
[377892607,1754602246654,-1860.47,0.00019178,2]
[377892608,1754602246663,-400.0,0.00019178,2]
[377892609,1754602246996,-400.0,0.00019178,2]
[377892610,1754602247007,-151.0,0.00019178,2]
[377892611,1754602247016,-1572.11,0.00019178,2]
[377892612,1754602247027,-1049.73,0.00019178,2]
[377892613,1754602247036,-151.0,0.00019178,2]
[377892614,1754602247046,-151.0,0.00019178,2]
[377892615,1754602247055,-151.0,0.00019178,2]
[377892616,1754602247065,-1961.31,0.00019178,2]
[377892617,1754602247075,-400.0,0.00019178,2]
[377892618,1754602247085,-400.0,0.00019178,2]
[377892619,1754602247094,-151.0,0.00019178,2]
[377892620,1754602247104,-151.0,0.00019178,2]
[377892621,1754602247114,-288.014815,0.00019178,2]
[377892622,1754602247123,-1954.78,0.00019178,2]
[377892623,1754602247132,-2123.58,0.00019178,2]
[377892624,1754602247142,-400.0,0.00019178,2]
[377892625,1754602247151,-1956.2,0.00019178,2]
[377892626,1754602247160,-400.0,0.00019178,2]
[377892627,1754602247170,-2630.89,0.00019178,2]
[377892628,1754602247179,-1958.57,0.00019178,2]
[377892629,1754602247190,-2157.78,0.00019178,2]
[377892630,1754602247201,-400.0,0.00019178,2]
[377892631,1754602247210,-598.61,0.00019178,2]
[377892632,1754602247220,-2685.9,0.00019178,2]
[377892633,1754602247229,-1470.3,0.00019178,2]
[377892634,1754602247243,-551.74,0.00019178,2]
[377892635,1754602247259,-400.0,0.00019178,2]
[377892636,1754602247268,-400.0,0.00019178,2]
[377892637,1754602247278,-1043.42,0.00019178,2]
[377892638,1754602247288,-400.0,0.00019178,2]
[377892639,1754602247300,-400.0,0.00019178,2]
[377892640,1754602247309,-500.0,0.00019178,2]
[377892641,1754602247319,-1390.23,0.00019178,2]
[377892642,1754602247328,-277.68893214,0.00019178,2]
[377892643,1754602247338,-151.0,0.00019178,2]